fUSD/lending_fUSD_20260409
["ID","MTS","AMOUNT","RATE_DAILY","PERIOD"]
[420144928,1775724491188,-1000.0,9.829e-05,2]
[420144929,1775724491413,-1000.0,9.829e-05,2]
[420144930,1775724491822,-1000.0,9.829e-05,2]
[420144931,1775724492259,-1000.0,9.829e-05,2]
[420144932,1775724492813,-1000.0,9.829e-05,2]
[420144933,1775724492948,-1000.0,9.829e-05,2]
[420144934,1775724493295,-1000.0,9.829e-05,2]
[420144935,1775724493715,-1000.0,9.829e-05,2]
[420144936,1775724494148,-1000.0,9.829e-05,2]
[420144937,1775724494574,-1000.0,9.829e-05,2]
[420144938,1775724496487,-1000.0,9.829e-05,2]
[420144939,1775724496551,-1000.0,9.829e-05,2]
[420144940,1775724496586,-1000.0,9.829e-05,2]
[420144941,1775724496634,-1000.0,9.829e-05,2]
[420144942,1775724496677,-1000.0,9.829e-05,2]
[420144943,1775724496961,-1000.0,9.829e-05,2]
[420144944,1775724497387,-1000.0,9.829e-05,2]
[420144945,1775724497829,-1000.0,9.829e-05,2]
[420144946,1775724498240,-1000.0,9.829e-05,2]
[420144947,1775724498662,-1000.0,9.829e-05,2]
[420144948,1775724498961,-1000.0,9.829e-05,2]
[420144949,1775724499414,-1000.0,9.829e-05,2]
[420144950,1775724499853,-1000.0,9.829e-05,2]
[420144951,1775724500287,-1000.0,9.829e-05,2]
[420144952,1775724500572,-1000.0,9.829e-05,2]
[420144953,1775724500978,-1000.0,9.829e-05,2]
[420144954,1775724501301,-1000.0,9.829e-05,2]
[420144955,1775724501649,-1000.0,9.829e-05,2]
[420144956,1775724502060,-1000.0,9.829e-05,2]
[420144957,1775724502532,-1000.0,9.829e-05,2]
[420144958,1775724502931,-1000.0,9.829e-05,2]
[420144959,1775724503253,-1000.0,9.829e-05,2]
[420144960,1775724503650,-1000.0,9.829e-05,2]
[420144961,1775724503983,-1000.0,9.829e-05,2]
[420144962,1775724504386,-1000.0,9.829e-05,2]
[420144963,1775724504799,-1000.0,9.829e-05,2]
[420144964,1775724505278,-1000.0,9.829e-05,2]
[420144965,1775724505680,-1000.0,9.829e-05,2]
[420144966,1775724506001,-1000.0,9.829e-05,2]
[420144967,1775724506401,-1000.0,9.829e-05,2]
[420144968,1775724508258,-1000.0,9.829e-05,2]
[420144969,1775724508312,-1000.0,9.829e-05,2]
[420144970,1775724508453,-1000.0,9.829e-05,2]
[420144971,1775724508519,-1000.0,9.829e-05,2]
[420144972,1775724508661,-1000.0,9.829e-05,2]
[420144973,1775724509716,-1000.0,9.829e-05,2]
[420144974,1775724510152,-1000.0,9.829e-05,2]
[420144975,1775724510546,-1000.0,9.829e-05,2]
[420144976,1775724510886,-1000.0,9.829e-05,2]
[420144977,1775724511243,-1000.0,9.829e-05,2]
[420144978,1775724511690,-1000.0,9.829e-05,2]
[420144979,1775724512365,-1000.0,9.829e-05,2]
[420144980,1775724512775,-1000.0,9.829e-05,2]
[420144981,1775724514609,-1000.0,9.829e-05,2]
[420144982,1775724514648,-1000.0,9.829e-05,2]
[420144983,1775724514709,-1000.0,9.829e-05,2]
[420144984,1775724514772,-1000.0,9.829e-05,2]
[420144985,1775724514910,-1000.0,9.829e-05,2]
[420144986,1775724515024,-1000.0,9.829e-05,2]
[420144987,1775724515426,-1000.0,9.829e-05,2]
[420144988,1775724515749,-1000.0,9.829e-05,2]
[420144989,1775724516129,-1000.0,9.829e-05,2]
[420144990,1775724516546,-1000.0,9.829e-05,2]
[420144991,1775724516857,-1000.0,9.829e-05,2]
[420144992,1775724517270,-1000.0,9.829e-05,2]
[420144993,1775724517680,-1000.0,9.829e-05,2]
[420144994,1775724519737,-1000.0,9.829e-05,2]
[420144995,1775724520565,-1000.0,9.829e-05,2]
[420144996,1775724520983,-1000.0,9.829e-05,2]
[420144997,1775724521771,-1000.0,9.829e-05,2]
[420144998,1775724532929,-1000.0,9.829e-05,2]
[420144999,1775724533305,-1000.0,9.829e-05,2]
[420145000,1775724533656,-1000.0,9.829e-05,2]
[420145001,1775724534064,-1000.0,9.829e-05,2]
[420145002,1775724534507,-1000.0,9.829e-05,2]
[420145003,1775724534916,-1000.0,9.829e-05,2]
[420145004,1775724535361,-1000.0,9.829e-05,2]
[420145005,1775724535701,-1000.0,9.829e-05,2]
[420145006,1775724536133,-1000.0,9.829e-05,2]
[420145007,1775724536599,-1000.0,9.829e-05,2]
[420145008,1775724537004,-1000.0,9.829e-05,2]
[420145009,1775724537455,-1000.0,9.829e-05,2]
[420145010,1775724537847,-1000.0,9.829e-05,2]
[420145011,1775724538158,-1000.0,9.829e-05,2]
[420145012,1775724538558,-1000.0,9.829e-05,2]
[420145013,1775724538876,-1000.0,9.829e-05,2]
[420145014,1775724539293,-1000.0,9.829e-05,2]
[420145015,1775724539597,-1000.0,9.829e-05,2]
[420145016,1775724539997,-1000.0,9.829e-05,2]
[420145017,1775724540341,-1000.0,9.829e-05,2]
[420145018,1775724540770,-1000.0,9.829e-05,2]
[420145019,1775724541050,-1000.0,9.829e-05,2]
[420145020,1775724542961,-1000.0,9.829e-05,2]
[420145021,1775724543024,-1000.0,9.829e-05,2]
[420145022,1775724543064,-1000.0,9.829e-05,2]
[420145023,1775724543136,-1000.0,9.829e-05,2]
[420145024,1775724543194,-1000.0,9.829e-05,2]
[420145025,1775724544180,-1000.0,9.829e-05,2]
[420145026,1775724544582,-1000.0,9.829e-05,2]
[420145027,1775724544976,-1000.0,9.829e-05,2]
[420145028,1775724545419,-307.5604488,9.829e-05,2]
[420145029,1775724546370,250.0,9.901e-05,2]
[420145030,1775724547752,150.0,9.829e-05,3]
[420145031,1775724569534,-292.4396,9.973e-05,2]
[420145032,1775724573081,-207.5604,9.973e-05,2]
[420145033,1775724573104,-500.0,9.973e-05,2]
[420145034,1775724573127,-292.4396,9.973e-05,2]
[420145035,1775724574302,-207.5604,9.973e-05,2]
[420145036,1775724574325,-349.14987639,9.973e-05,2]
[420145037,1775724574348,-151.0,9.997e-05,2]
[420145038,1775724574370,-292.28972361,9.999e-05,2]
[420145039,1775724574755,-707.71027639,9.999e-05,2]
[420145040,1775724574778,-292.28972361,9.999e-05,2]
[420145041,1775724575215,-207.71027639,9.999e-05,2]
[420145042,1775724575243,-500.0,9.999e-05,2]
[420145043,1775724575271,-292.28972361,9.999e-05,2]
[420145044,1775724575559,-207.71027639,9.999e-05,2]
[420145045,1775724575586,-500.0,9.999e-05,2]
[420145046,1775724575612,-292.28972361,9.999e-05,2]
[420145047,1775724575982,-207.71027639,9.999e-05,2]
[420145048,1775724576009,-500.0,9.999e-05,2]
[420145049,1775724576037,-292.28972361,9.999e-05,2]
[420145050,1775724577825,-207.71027639,9.999e-05,2]
[420145051,1775724577852,-500.0,9.999e-05,2]
[420145052,1775724577879,-292.28972361,9.999e-05,2]
[420145053,1775724578399,-207.71027639,9.999e-05,2]
[420145054,1775724578427,-500.0,9.999e-05,2]
[420145055,1775724578455,-292.28972361,9.999e-05,2]
[420145056,1775724579214,-207.71027639,9.999e-05,2]
[420145057,1775724579241,-500.0,9.999e-05,2]
[420145058,1775724579267,-292.28972361,9.999e-05,2]
[420145062,1775724632301,-300.0,9.729e-05,2]
[420145063,1775724632311,-1200.0,9.729e-05,2]
[420145064,1775724632321,-146425.49974386,9.73e-05,2]
[420145065,1775724632333,-48524.13571807,9.73e-05,2]
[420145068,1775724632385,-4705.26413831,9.73e-05,2]
[420145071,1775724632398,-14266.62679222,9.73e-05,2]
[420145073,1775724632409,-675.352,9.73e-05,2]
[420145074,1775724632421,-1652.648,9.73e-05,2]
[420145080,1775724638255,-182.82419012,9.729e-05,2]
[420145081,1775724638264,-207.71027639,9.729e-05,2]
[420145082,1775724638275,-500.0,9.729e-05,2]
[420145083,1775724638285,-4632.71881732,9.73e-05,2]
[420145084,1775724638297,-35611.49999999,9.73e-05,2]
[420145089,1775724641396,-450999.36509023,9.73e-05,2]
[420145090,1775724641406,-316.08390938,9.973e-05,2]
[420145091,1775724641416,-500.0,9.973e-05,2]
[420145092,1775724641425,-500.70850906,9.973e-05,2]
[420145093,1775724641435,-500.0,9.973e-05,2]
[420145094,1775724641444,-503.49918518,9.999e-05,2]
[420145095,1775724641924,-167.82754785,9.999e-05,2]
[420145096,1775724641955,-200.0,9.999e-05,2]
[420145097,1775724641965,-150.0,9.999e-05,3]
[420145098,1775724641975,-500.0,9.999e-05,2]
[420145099,1775724641984,-165.68748529,9.999e-05,2]
[420145100,1775724641994,-231.6185865,9.999e-05,2]
[420145101,1775724642003,-500.0,9.999e-05,2]
[420145102,1775724642013,-500.0,9.999e-05,2]
[420145103,1775724642024,-500.0,9.999e-05,2]
[420145104,1775724642033,-500.0,9.999e-05,2]
[420145105,1775724642042,-278.47967687,9.999e-05,2]
[420145106,1775724642052,-500.0,9.999e-05,2]
[420145107,1775724642061,-487.80390017,9.999e-05,2]
[420145108,1775724642072,-299.37164245,9.999e-05,2]
[420145109,1775724642083,-500.0,9.999e-05,2]
[420145110,1775724642092,-500.0,9.999e-05,2]
[420145111,1775724642101,-416.68408159,9.999e-05,2]
[420145112,1775724642111,-500.0,9.999e-05,2]
[420145113,1775724642120,-500.0,9.999e-05,2]
[420145114,1775724642130,-500.0,9.999e-05,2]
[420145115,1775724642140,-500.0,9.999e-05,2]
[420145116,1775724642150,-500.0,9.999e-05,2]
[420145117,1775724642159,-500.0,9.999e-05,2]
[420145118,1775724642168,-435581.4886,0.0001,2]
[420145119,1775724642178,-2200.0,0.0001,3]
[420145120,1775724642193,-1116.0,0.00010005,2]
[420145121,1775724642203,-500.0,0.00010073,2]
[420145122,1775724642213,-633.73054427,0.00010073,2]
[420145123,1775724642223,-500.0,0.00010073,2]
[420145124,1775724642233,-500.0,0.00010073,2]
[420145125,1775724642242,-500.0,0.00010073,2]
[420145126,1775724642253,-500.0,0.00010073,2]
[420145127,1775724642262,-1015.94760317,0.00010084,2]
[420145128,1775724642272,-151.0,0.00010094,2]
[420145129,1775724642284,-151.0,0.00010094,2]
[420145130,1775724642294,-151.0,0.00010094,2]
[420145131,1775724642305,-151.0,0.00010094,2]
[420145132,1775724642315,-151.0,0.00010094,2]
[420145133,1775724642326,-151.0,0.00010094,2]
[420145134,1775724642336,-151.0,0.00010094,2]
[420145135,1775724642346,-151.0,0.00010094,2]
[420145136,1775724642356,-151.0,0.00010094,2]
[420145137,1775724642366,-151.0,0.00010094,2]
[420145138,1775724642376,-151.0,0.00010094,2]
[420145139,1775724642387,-151.0,0.00010094,2]
[420145140,1775724642397,-151.0,0.00010094,2]
[420145141,1775724642407,-151.0,0.00010094,2]
[420145142,1775724642418,-151.0,0.00010094,2]
[420145143,1775724642429,-200.0,0.00010094,2]
[420145144,1775724642439,-151.0,0.00010094,2]
[420145145,1775724642449,-500.0,0.00010094,2]
[420145146,1775724642459,-500.0,0.00010094,2]
[420145147,1775724642469,-500.0,0.00010094,2]
[420145148,1775724642480,-500.0,0.00010094,2]
[420145149,1775724642490,-500.0,0.00010094,2]
[420145150,1775724642500,-500.0,0.00010094,2]
[420145151,1775724642511,-500.0,0.00010094,2]
[420145152,1775724642521,-500.0,0.00010094,2]
[420145153,1775724642531,-151.0,0.00010094,2]
[420145154,1775724642542,-500.0,0.00010094,2]
[420145155,1775724642552,-151.0,0.00010094,2]
[420145156,1775724642563,-500.0,0.00010094,2]
[420145157,1775724642573,-151.0,0.00010094,2]
[420145158,1775724642583,-500.0,0.00010094,2]
[420145159,1775724642593,-151.0,0.00010094,2]
[420145160,1775724642603,-500.0,0.00010094,2]
[420145161,1775724642613,-151.0,0.00010094,2]
[420145162,1775724642623,-151.0,0.00010094,2]
[420145163,1775724642633,-151.0,0.00010094,2]
[420145164,1775724642644,-151.0,0.00010094,2]
[420145165,1775724642654,-151.0,0.00010094,2]
[420145166,1775724642665,-151.0,0.00010094,2]
[420145167,1775724642675,-151.0,0.00010094,2]
[420145168,1775724642686,-151.0,0.00010094,2]
[420145169,1775724642701,-151.0,0.00010094,2]
[420145170,1775724642711,-151.0,0.00010094,2]
[420145172,1775724642721,-151.0,0.00010094,2]
[420145174,1775724642732,-151.0,0.00010094,2]
[420145176,1775724642742,-151.0,0.00010094,2]
[420145178,1775724642752,-151.0,0.00010094,2]
[420145180,1775724642762,-151.0,0.00010094,2]
[420145181,1775724642772,-151.0,0.00010094,2]
[420145182,1775724642782,-151.0,0.00010094,2]
[420145183,1775724642793,-500.0,0.00010094,2]
[420145184,1775724642803,-422.89884364,0.00010094,2]
[420145185,1775724642814,-1156.41848616,0.00010094,2]
[420145186,1775724642824,-151.0,0.00010097,2]
[420145187,1775724642835,-151.0,0.00010097,2]
[420145188,1775724642846,-159.121307,0.00010097,2]
[420145189,1775724642855,-200.0,0.00010099,2]
[420145190,1775724642865,-289.62,0.000101,2]
[420145191,1775724642876,-151.0,0.000101,2]
[420145192,1775724642886,-151.0,0.000101,2]
[420145193,1775724642897,-151.0,0.000101,2]
[420145194,1775724642907,-151.0,0.000101,2]
[420145195,1775724642918,-460.075977,0.000101,2]
[420145196,1775724642928,-460.075977,0.000101,2]
[420145198,1775724642938,-460.075977,0.000101,2]
[420145201,1775724642949,-460.075977,0.000101,2]
[420145203,1775724642959,-267.0,0.000102,3]
[420145204,1775724642970,-200.0,0.000102,2]
[420145205,1775724642980,-151.0,0.00010241,2]
[420145206,1775724642991,-747.87,0.00010244,2]
[420145207,1775724643001,-753.0,0.00010245,2]
[420145208,1775724643013,-528.0,0.00010276,2]
[420145209,1775724643023,-288.11113414,0.00010276,2]
[420145210,1775724643034,-1393.0,0.00010296,2]
[420145212,1775724643045,-2835.5,0.00010299,2]
[420145213,1775724643057,-2835.5,0.00010299,2]
[420145215,1775724643068,-150.0,0.000103,2]
[420145216,1775724643078,-200.0,0.00010302,2]
[420145219,1775724643089,-5000.0,0.00010313,2]
[420145222,1775724643101,-250.0,0.00010313,2]
[420145223,1775724643111,-460.0,0.00010332,2]
[420145224,1775724643123,-152.0,0.00010332,2]
[420145225,1775724643134,-3926.93,0.00010338,2]
[420145226,1775724643145,-616.0,0.00010352,2]
[420145227,1775724643155,-161.7,0.00010363,2]
[420145228,1775724643166,-5533.0,0.000104,5]
[420145229,1775724643177,-200.0,0.00010405,2]
[420145230,1775724643188,-747.87,0.00010518,2]
[420145231,1775724643202,-151.0,0.00010519,2]
[420145232,1775724643213,-151.0,0.00010519,2]
[420145233,1775724643225,-151.0,0.00010519,2]
[420145234,1775724643235,-151.0,0.00010519,2]
[420145235,1775724643246,-460.075977,0.00010519,2]
[420145236,1775724643257,-460.075977,0.00010519,2]
[420145237,1775724643268,-460.075977,0.00010519,2]
[420145238,1775724643279,-460.075977,0.00010519,2]
[420145239,1775724643291,-500.0,0.00010521,2]
[420145240,1775724643302,-176.20779835,0.00010521,2]
[420145241,1775724643313,-1116.0,0.00010532,2]
[420145242,1775724643324,-200.0,0.00010583,2]
[420145243,1775724643335,-5895.37,0.0001059,2]
[420145244,1775724643345,-160.20305427,0.00010621,2]
[420145245,1775724643356,-1000.0,0.00010621,2]
[420145246,1775724643368,-200.0,0.00010642,2]
[420145247,1775724643379,-1199.20597015,0.00010642,2]
[420145248,1775724643389,-372.0,0.00010649,2]
[420145249,1775724643400,-1680.0,0.00010701,2]
[420145250,1775724643411,-420.0,0.00010701,2]
[420145251,1775724643421,-3023.43685101,0.00010702,2]
[420145252,1775724643432,-325.65,0.00010764,2]
[420145253,1775724643443,-747.87,0.00010792,2]
[420145254,1775724643454,-255.0,0.00010811,2]
[420145255,1775724643465,-193.0,0.00010812,2]
[420145256,1775724643475,-250.0,0.00010812,2]
[420145257,1775724643486,-200.0,0.00010848,2]
[420145258,1775724643497,-578.20924308,0.00010848,2]
[420145259,1775724643508,-1191.11104075,0.00010848,2]
[420145260,1775724643519,-500.0,0.00010848,2]
[420145261,1775724643531,-174.61919141,0.00010848,2]
[420145262,1775724643542,-601.3376128,0.00010848,2]
[420145263,1775724643553,-7965.41053268,0.00010848,2]
[420145264,1775724643563,-151.0,0.00010848,2]
[420145265,1775724643574,-151.0,0.00010848,2]
[420145266,1775724643585,-151.0,0.00010848,2]
[420145267,1775724643595,-162.00740209,0.00010848,2]
[420145268,1775724643606,-743.50770149,0.00010848,2]
[420145269,1775724643617,-178.09177821,0.00010848,2]
[420145270,1775724643629,-1500.0,0.00010848,2]
[420145271,1775724643640,-1500.0,0.00010848,2]
[420145272,1775724643651,-1500.0,0.00010848,2]
[420145273,1775724643661,-151.0,0.00010848,2]
[420145274,1775724643673,-1500.0,0.00010848,2]
[420145275,1775724643683,-160.71220784,0.00010848,2]
[420145276,1775724643694,-1500.0,0.00010848,2]
[420145277,1775724643705,-1500.0,0.00010848,2]
[420145278,1775724643715,-1500.0,0.00010848,2]
[420145279,1775724643725,-1500.0,0.00010848,2]
[420145280,1775724643736,-1500.0,0.00010848,2]
[420145281,1775724643746,-1500.0,0.00010848,2]
[420145282,1775724643758,-1500.0,0.00010848,2]
[420145283,1775724643768,-1500.0,0.00010848,2]
[420145284,1775724643778,-1500.0,0.00010848,2]
[420145285,1775724643789,-1500.0,0.00010848,2]
[420145286,1775724643799,-1612.05314765,0.00010848,2]
[420145288,1775724643810,-1500.0,0.00010848,2]
[420145289,1775724643820,-1538.04492128,0.00010848,2]
[420145290,1775724643831,-578.20924308,0.00010848,2]
[420145291,1775724643843,-174.61919141,0.00010848,2]
[420145292,1775724643853,-175.89177646,0.00010848,2]
[420145293,1775724643863,-279.9045709,0.00010848,2]
[420145294,1775724643884,-4400.0,0.000109,3]
[420145295,1775724643896,-6268.11348939,0.000109,2]
[420145296,1775724643908,-6268.11348938,0.000109,2]
[420145297,1775724643919,-500.0,0.00010903,2]
[420145298,1775724643931,-8260.13072239,0.00010903,2]
[420145299,1775724643942,-151.0,0.00010903,2]
[420145300,1775724643953,-151.0,0.00010904,2]
[420145301,1775724643963,-151.0,0.00010904,2]
[420145302,1775724643974,-500.0,0.00010958,2]
[420145303,1775724643985,-8565.75555911,0.00010958,2]
[420145306,1775724643996,-151.0,0.00010958,2]
[420145308,1775724644006,-500.0,0.00010959,2]
[420145309,1775724644016,-229.94658399,0.00010959,2]
[420145311,1775724644027,-1818.2,0.00010959,2]
[420145312,1775724644037,-169.54971223,0.00010959,2]
[420145313,1775724644047,-300.32314758,0.0001097,2]
[420145314,1775724644058,-500.0,0.00011013,2]
[420145315,1775724644068,-8882.6885148,0.00011013,2]
[420145316,1775724644078,-151.0,0.00011013,2]
[420145317,1775724644088,-151.524,0.00011022,2]
[420145318,1775724644098,-747.87,0.00011065,2]
[420145319,1775724644109,-500.0,0.00011068,2]
[420145320,1775724644119,-9211.34798985,0.00011068,2]
[420145321,1775724644132,-151.0,0.00011068,2]
[420145322,1775724644142,-1116.0,0.00011086,2]
[420145323,1775724644152,-151.0,0.00011096,2]
[420145324,1775724644162,-39450.36520652,0.00011099,2]
[420145325,1775724644173,-39450.36520646,0.00011099,2]
[420145326,1775724644184,-39450.36520646,0.00011099,2]
[420145329,1775724644194,-26593.73041243,0.00011099,2]
[420145332,1775724644205,-26593.73041237,0.00011099,2]
[420145334,1775724644215,-26593.73041237,0.00011099,2]
[420145335,1775724644225,-151.0,0.00011099,2]
[420145336,1775724644235,-151.0,0.00011099,2]
[420145337,1775724644245,-151.231694,0.00011099,2]
[420145338,1775724644254,-151.0,0.00011099,2]
[420145339,1775724644264,-151.0,0.00011099,2]
[420145340,1775724644275,-151.0,0.00011099,2]
[420145341,1775724644285,-151.0,0.00011099,2]
[420145342,1775724644295,-151.0,0.00011099,2]
[420145343,1775724644307,-151.0,0.00011099,2]
[420145344,1775724644318,-460.075977,0.00011099,2]
[420145345,1775724644328,-460.075977,0.00011099,2]
[420145346,1775724644338,-460.075977,0.00011099,2]
[420145347,1775724644348,-460.075977,0.00011099,2]
[420145348,1775724644358,-460.075977,0.00011099,2]
[420145349,1775724644368,-460.075977,0.00011099,2]
[420145350,1775724644379,-460.075977,0.00011099,2]
[420145351,1775724644389,-460.075977,0.00011099,2]
[420145352,1775724644399,-151.0,0.00011099,2]
[420145353,1775724644409,-500.0,0.00011123,2]
[420145354,1775724644419,-9552.16786547,0.00011123,2]
[420145355,1775724644429,-151.0,0.00011123,2]
[420145356,1775724644439,-39450.36520646,0.00011133,2]
[420145357,1775724644449,-26593.73041237,0.00011133,2]
[420145358,1775724644460,-1500.0,0.00011168,2]
[420145359,1775724644470,-151.0,0.00011178,2]
[420145360,1775724644480,-500.0,0.00011178,2]
[420145361,1775724644489,-9905.5980765,0.00011178,2]
[420145362,1775724644499,-151.0,0.00011178,2]
[420145363,1775724644509,-200.0,0.0001119,2]
[420145364,1775724644519,-1243.57659104,0.0001119,2]
[420145365,1775724644529,-31590.16094464,0.00011201,2]
[420145366,1775724644539,-500.0,0.00011233,2]
[420145367,1775724644549,-10272.10520533,0.00011233,2]
[420145368,1775724644559,-151.0,0.00011233,2]
[420145369,1775724644570,-151.0,0.00011247,2]
[420145370,1775724644579,-500.0,0.00011288,2]
[420145371,1775724644589,-500.0,0.00011288,2]
[420145372,1775724644600,-10652.17309792,0.00011288,2]
[420145373,1775724644610,-151.0,0.00011288,2]
[420145374,1775724644620,-150.0,0.00011332,3]
[420145375,1775724644630,-747.87,0.00011339,2]
[420145376,1775724644640,-201.83,0.00011339,2]
[420145377,1775724644650,-500.0,0.00011343,2]
[420145378,1775724644660,-1928.28190795,0.00011343,2]
[420145379,1775724644670,-151.0,0.00011343,2]
[420145380,1775724644680,-152.0,0.00011351,3]
[420145381,1775724644690,-151.0,0.00011381,2]
[420145382,1775724644700,-151.0,0.00011381,2]
[420145383,1775724644710,-151.0,0.00011381,2]
[420145384,1775724644720,-282.251336,0.00011381,2]
[420145385,1775724644730,-460.075977,0.00011381,2]
[420145386,1775724644740,-460.075977,0.00011381,2]
[420145387,1775724644749,-460.075977,0.00011381,2]
[420145388,1775724644759,-460.075971,0.00011381,2]
[420145389,1775724644769,-200.0,0.00011396,2]
[420145390,1775724644779,-1235.18214925,0.00011396,2]
[420145391,1775724644789,-181.08010149,0.00011396,2]
[420145392,1775724644799,-771.01748645,0.00011396,2]
[420145393,1775724644810,-599.60298507,0.00011396,2]
[420145394,1775724644820,-181.08010149,0.00011396,2]
[420145395,1775724644830,-290.26104003,0.00011396,2]
[420145396,1775724644839,-500.0,0.00011398,2]
[420145397,1775724644849,-151.0,0.00011398,2]
[420145398,1775724644859,-500.0,0.00011453,2]
[420145399,1775724644869,-151.0,0.00011453,2]
[420145400,1775724644879,-4894.46,0.00011507,2]
[420145401,1775724644889,-500.0,0.00011508,2]
[420145402,1775724644898,-151.0,0.00011508,2]
[420145403,1775724644909,-2000.0,0.0001152,2]
[420145404,1775724644919,-6268.11348938,0.00011531,2]
[420145405,1775724644929,-39450.36520646,0.00011544,2]
[420145406,1775724644939,-26593.73041237,0.00011544,2]
[420145407,1775724644949,-151.0,0.00011544,2]
[420145408,1775724644959,-500.0,0.00011563,2]
[420145409,1775724644969,-151.0,0.00011563,2]
[420145410,1775724644979,-875.0,0.00011593,5]
[420145411,1775724644989,-747.87,0.00011613,2]
[420145412,1775724644999,-500.0,0.00011618,2]
[420145413,1775724645009,-151.0,0.00011618,2]
[420145414,1775724645019,-1116.0,0.0001167,2]
[420145415,1775724645029,-500.0,0.00011673,2]
[420145416,1775724645039,-151.0,0.00011673,2]
[420145417,1775724645048,-173.2274,0.000117,2]
[420145418,1775724645058,-160.0,0.00011716,2]
[420145419,1775724645069,-234.946665,0.00011716,2]
[420145420,1775724645079,-309.89333,0.00011716,2]
[420145421,1775724645088,-160.0,0.00011716,2]
[420145422,1775724645098,-570.439683,0.00011716,2]
[420145423,1775724645109,-980.879366,0.00011716,2]
[420145424,1775724645119,-160.0,0.00011716,2]
[420145425,1775724645128,-543.677996,0.00011716,2]
[420145426,1775724645139,-927.355992,0.00011716,2]
[420145427,1775724645149,-1000.0,0.00011716,2]
[420145428,1775724645158,-200.0,0.00011738,2]
[420145429,1775724645168,-388.68775872,0.00011738,2]
[420145430,1775724645178,-397.25763086,0.0001174,2]
[420145431,1775724645187,-869.43266541,0.0001174,2]
[420145432,1775724645197,-1360.07844521,0.0001174,2]
[420145433,1775724645206,-160.0,0.00011759,2]
[420145434,1775724645216,-446.723128,0.00011759,2]
[420145435,1775724645226,-733.446257,0.00011759,2]
[420145436,1775724645236,-2351.0,0.00011772,2]
[420145437,1775724645246,-587.0,0.00011772,2]
[420145438,1775724645256,-3000.0,0.0001183,2]
[420145439,1775724645266,-151.0,0.0001187,2]
[420145440,1775724645276,-152.0,0.00011876,4]
[420145441,1775724645299,-747.87,0.00011887,2]
[420145442,1775724645308,-433.0,0.00011892,2]
[420145443,1775724645318,-166.66,0.00011905,2]
[420145444,1775724645327,-200.0,0.00011944,2]
[420145445,1775724645336,-1280.88388878,0.00011944,2]
[420145446,1775724645346,-174.6191914,0.00011944,2]
[420145447,1775724645356,-799.54513345,0.00011944,2]
[420145448,1775724645365,-688.68986638,0.00011944,2]
[420145449,1775724645375,-187.78006525,0.00011944,2]
[420145450,1775724645384,-240.62877446,0.00011944,2]
[420145451,1775724645394,-39450.36520646,0.00011955,2]
[420145452,1775724645404,-26593.73041237,0.00011955,2]
[420145453,1775724645413,-9721.53,0.00012087,2]
[420145454,1775724645423,-160.0,0.000121,2]
[420145455,1775724645432,-615.633212,0.000121,2]
[420145456,1775724645446,-1071.266425,0.000121,2]
[420145457,1775724645455,-160.0,0.000121,2]
[420145458,1775724645465,-1657.982383,0.000121,2]
[420145459,1775724645479,-3155.964767,0.000121,2]
[420145460,1775724645489,-1900.0,0.00012104,2]
[420145461,1775724645499,-747.91132328,0.00012161,2]
[420145462,1775724645508,-1600.0,0.00012218,2]
[420145463,1775724645518,-250.0,0.00012258,2]
[420145464,1775724645528,-1116.0,0.00012284,2]
[420145465,1775724645538,-200.0,0.00012286,2]
[420145466,1775724645548,-151.0,0.0001229,2]
[420145467,1775724645558,-166.66,0.00012298,2]
[420145468,1775724645567,-320.381816,0.00012302,2]
[420145469,1775724645577,-777.872295,0.00012302,2]